{"text_format":"3","workbook":"xlsx","n_sheets":14,"sheets":["tips","sammanfattning","jan","feb","mar","apr","maj","jun","jul","aug","sep","okt","nov","dec"],"not_rendered":{"charts":1,"defined_names":27},"read":"whole","date_system":"1900"}

{"sheet":"tips","index":0,"n_rows":18,"n_cols":1,"rows_kept":18}
["MALLTIPS"]
["Finns det ett enkelt sätt att hoppa mellan bladet sammanfattning med utgiftstrender och informationen om månadsutgifter?"]
["För att snabbt navigera till en viss månads utgifter klickar du på den associerade navigeringslänken ovanför diagrammet, till exempel navigeringslänken Jan i B2. Om du vill gå tillbaka till kalkylbladet sammanfattning med utgiftstrender klickar du på navigeringslänken Sammanfattning i D1. "]
["Om du vill gå tillbaka till det här kalkylbladet, tips, väljer du N2 på kalkylbladet sammanfattning. På alla månadskalkylblad väljer du E1."]
["Hur lägger jag till en ny utgiftstyp i utgiftssammanfattningen eller nya månadsutgifter?"]
["Utgiftssammanfattningen nedanför diagrammet och utgiftsinformationen för varje månad är Excel-tabeller. Om du vill lägga till nya rader i en Excel-tabell gör du något av följande:"]
[{"$f":"ROW(A1)&\". Om tabellen inte har en summarad kan du börja skriva under tabellen så expanderas den automatiskt när du trycker på Retur- eller Tabb-tangenten.\"","v":"1. Om tabellen inte har en summarad kan du börja skriva under tabellen så expanderas den automatiskt när du trycker på Retur- eller Tabb-tangenten."}]
[{"$f":"ROW(A2)&\". Placera cellmarkören i den sista cellen ovanför summaraden, t.ex. totalsumman för den sista utgiften, och tryck sedan på Tabb-tangenten.\"","v":"2. Placera cellmarkören i den sista cellen ovanför summaraden, t.ex. totalsumman för den sista utgiften, och tryck sedan på Tabb-tangenten."}]
[{"$f":"ROW(A3)&\". Högerklicka i tabellen. På snabbmenyn väljer du Infoga och klickar sedan på Tabellrader ovanför eller Tabellrader nedanför.\"","v":"3. Högerklicka i tabellen. På snabbmenyn väljer du Infoga och klickar sedan på Tabellrader ovanför eller Tabellrader nedanför."}]
[{"$f":"ROW(A4)&\". I tabellens nedre högra hörn placerar du musen på tabellstorlekshandtaget och drar nedåt för att öka antalet tillgängliga tabellrader.\"","v":"4. I tabellens nedre högra hörn placerar du musen på tabellstorlekshandtaget och drar nedåt för att öka antalet tillgängliga tabellrader."}]
["Ange utgiften på kalkylbladet sammanfattning, i kolumnen Utgifter i tabellen Utgiftssammanfattning."]
["Lägg till utgiftsbeloppet för varje utgiftstyp på det månadskalkylblad som utgiften gäller."]
["Exempel: \"Utgift 1\" förekommer i månad jan till jun och dec. "]
[{"$f":"ROW(A1)&\". Utgift 1 anges i sammanfattningskalkylbladet under Utgift i tabellen Utgiftssammanfattning (som namn på utgiftstypen)\"","v":"1. Utgift 1 anges i sammanfattningskalkylbladet under Utgift i tabellen Utgiftssammanfattning (som namn på utgiftstypen)"}]
[{"$f":"ROW(A2)&\". För varje månad utgiften uppstår anger du utgiftsbeloppet i kalkylbladet för motsvarande månad.\"","v":"2. För varje månad utgiften uppstår anger du utgiftsbeloppet i kalkylbladet för motsvarande månad."}]
[{"$f":"ROW(A3)&\". Utgiftstypen från kalkylbladet Utgiftssammanfattning skapar en kategorilista för kolumnen Kategori i kalkylbladet för varje månad.\"","v":"3. Utgiftstypen från kalkylbladet Utgiftssammanfattning skapar en kategorilista för kolumnen Kategori i kalkylbladet för varje månad."}]
[{"$f":"ROW(A4)&\". Använd kategorilistan i kolumnen Kategori för att markera motsvarande utgiftstyp för det angivna utgiftsbeloppet\"","v":"4. Använd kategorilistan i kolumnen Kategori för att markera motsvarande utgiftstyp för det angivna utgiftsbeloppet"}]
[{"$f":"ROW(A5)&\". Om du vill lägga till nya utgifter för en månad lägger du till en ny rad i tabellen Uppgiftssammanfattning i sammanfattningskalkylbladet och anger sedan motsvarande utgiftsinformation i kalkylbladet för den månad det gäller.\"","v":"5. Om du vill lägga till nya utgifter för en månad lägger du till en ny rad i tabellen Uppgiftssammanfattning i sammanfattningskalkylbladet och anger sedan motsvarande utgiftsinformation i kalkylbladet för den månad det gäller."}]

{"sheet":"sammanfattning","index":1,"n_rows":10,"n_cols":15,"rows_kept":10}
["UTGIFTSTRENDER"]
[null,"Jan","Feb","Mar","Apr","Maj","Jun","Jul","Aug","Sep","Okt","Nov","Dec","Tips"]
[]
["Utgifter","Jan","Feb","Mar","Apr","Maj","Jun","Jul","Aug","Sep","Okt","Nov","Dec","Summa","Trend"]
["Utgift 1",{"$f":"SUMIFS(UtgJan[Belopp],UtgJan[Kategori],Utgiftssammanfattning[Utgifter])","v":{"v":33,"d":"33.00"}},{"$f":"SUMIFS(UtgFeb[Belopp],UtgFeb[Kategori],Utgiftssammanfattning[Utgifter])","v":{"v":375,"d":"375.00"}},{"$f":"SUMIFS(UtgMar[Belopp],UtgMar[Kategori],Utgiftssammanfattning[Utgifter])","v":{"v":33,"d":"33.00"}},{"$f":"SUMIFS(UtgApr[Belopp],UtgApr[Kategori],Utgiftssammanfattning[Utgifter])","v":{"v":45,"d":"45.00"}},{"$f":"SUMIFS(UtgMaj[Belopp],UtgMaj[Kategori],Utgiftssammanfattning[Utgifter])","v":{"v":375,"d":"375.00"}},{"$f":"SUMIFS(UtgJun[Belopp],UtgJun[Kategori],Utgiftssammanfattning[Utgifter])","v":{"v":201,"d":"201.00"}},{"$f":"SUMIFS(UtgJul[Belopp],UtgJul[Kategori],Utgiftssammanfattning[Utgifter])","v":{"v":0,"d":"0.00"}},{"$f":"SUMIFS(UtgAug[Belopp],UtgAug[Kategori],Utgiftssammanfattning[Utgifter])","v":{"v":0,"d":"0.00"}},{"$f":"SUMIFS(UtgSep[Belopp],UtgSep[Kategori],Utgiftssammanfattning[Utgifter])","v":{"v":0,"d":"0.00"}},{"$f":"SUMIFS(UtgOkt[Belopp],UtgOkt[Kategori],Utgiftssammanfattning[Utgifter])","v":{"v":0,"d":"0.00"}},{"$f":"SUMIFS(UtgNov[Belopp],UtgNov[Kategori],Utgiftssammanfattning[Utgifter])","v":{"v":0,"d":"0.00"}},{"$f":"SUMIFS(UtgDec[Belopp],UtgDec[Kategori],Utgiftssammanfattning[Utgifter])","v":{"v":201,"d":"201.00"}},{"$f":"SUM(Utgiftssammanfattning[[#This Row],[Jan]:[Dec]])","v":{"v":1263,"d":"1,263.00"}}]
["Utgift 2",{"$f":"SUMIFS(UtgJan[Belopp],UtgJan[Kategori],Utgiftssammanfattning[Utgifter])","v":{"v":238,"d":"238.00"}},{"$f":"SUMIFS(UtgFeb[Belopp],UtgFeb[Kategori],Utgiftssammanfattning[Utgifter])","v":{"v":238,"d":"238.00"}},{"$f":"SUMIFS(UtgMar[Belopp],UtgMar[Kategori],Utgiftssammanfattning[Utgifter])","v":{"v":238,"d":"238.00"}},{"$f":"SUMIFS(UtgApr[Belopp],UtgApr[Kategori],Utgiftssammanfattning[Utgifter])","v":{"v":123,"d":"123.00"}},{"$f":"SUMIFS(UtgMaj[Belopp],UtgMaj[Kategori],Utgiftssammanfattning[Utgifter])","v":{"v":111,"d":"111.00"}},{"$f":"SUMIFS(UtgJun[Belopp],UtgJun[Kategori],Utgiftssammanfattning[Utgifter])","v":{"v":98,"d":"98.00"}},{"$f":"SUMIFS(UtgJul[Belopp],UtgJul[Kategori],Utgiftssammanfattning[Utgifter])","v":{"v":0,"d":"0.00"}},{"$f":"SUMIFS(UtgAug[Belopp],UtgAug[Kategori],Utgiftssammanfattning[Utgifter])","v":{"v":0,"d":"0.00"}},{"$f":"SUMIFS(UtgSep[Belopp],UtgSep[Kategori],Utgiftssammanfattning[Utgifter])","v":{"v":0,"d":"0.00"}},{"$f":"SUMIFS(UtgOkt[Belopp],UtgOkt[Kategori],Utgiftssammanfattning[Utgifter])","v":{"v":0,"d":"0.00"}},{"$f":"SUMIFS(UtgNov[Belopp],UtgNov[Kategori],Utgiftssammanfattning[Utgifter])","v":{"v":0,"d":"0.00"}},{"$f":"SUMIFS(UtgDec[Belopp],UtgDec[Kategori],Utgiftssammanfattning[Utgifter])","v":{"v":440,"d":"440.00"}},{"$f":"SUM(Utgiftssammanfattning[[#This Row],[Jan]:[Dec]])","v":{"v":1486,"d":"1,486.00"}}]
["Utgift 3",{"$f":"SUMIFS(UtgJan[Belopp],UtgJan[Kategori],Utgiftssammanfattning[Utgifter])","v":{"v":110,"d":"110.00"}},{"$f":"SUMIFS(UtgFeb[Belopp],UtgFeb[Kategori],Utgiftssammanfattning[Utgifter])","v":{"v":110,"d":"110.00"}},{"$f":"SUMIFS(UtgMar[Belopp],UtgMar[Kategori],Utgiftssammanfattning[Utgifter])","v":{"v":110,"d":"110.00"}},{"$f":"SUMIFS(UtgApr[Belopp],UtgApr[Kategori],Utgiftssammanfattning[Utgifter])","v":{"v":125,"d":"125.00"}},{"$f":"SUMIFS(UtgMaj[Belopp],UtgMaj[Kategori],Utgiftssammanfattning[Utgifter])","v":{"v":333,"d":"333.00"}},{"$f":"SUMIFS(UtgJun[Belopp],UtgJun[Kategori],Utgiftssammanfattning[Utgifter])","v":{"v":122,"d":"122.00"}},{"$f":"SUMIFS(UtgJul[Belopp],UtgJul[Kategori],Utgiftssammanfattning[Utgifter])","v":{"v":0,"d":"0.00"}},{"$f":"SUMIFS(UtgAug[Belopp],UtgAug[Kategori],Utgiftssammanfattning[Utgifter])","v":{"v":0,"d":"0.00"}},{"$f":"SUMIFS(UtgSep[Belopp],UtgSep[Kategori],Utgiftssammanfattning[Utgifter])","v":{"v":0,"d":"0.00"}},{"$f":"SUMIFS(UtgOkt[Belopp],UtgOkt[Kategori],Utgiftssammanfattning[Utgifter])","v":{"v":0,"d":"0.00"}},{"$f":"SUMIFS(UtgNov[Belopp],UtgNov[Kategori],Utgiftssammanfattning[Utgifter])","v":{"v":0,"d":"0.00"}},{"$f":"SUMIFS(UtgDec[Belopp],UtgDec[Kategori],Utgiftssammanfattning[Utgifter])","v":{"v":122,"d":"122.00"}},{"$f":"SUM(Utgiftssammanfattning[[#This Row],[Jan]:[Dec]])","v":{"v":1032,"d":"1,032.00"}}]
["Utgift 4",{"$f":"SUMIFS(UtgJan[Belopp],UtgJan[Kategori],Utgiftssammanfattning[Utgifter])","v":{"v":426,"d":"426.00"}},{"$f":"SUMIFS(UtgFeb[Belopp],UtgFeb[Kategori],Utgiftssammanfattning[Utgifter])","v":{"v":84,"d":"84.00"}},{"$f":"SUMIFS(UtgMar[Belopp],UtgMar[Kategori],Utgiftssammanfattning[Utgifter])","v":{"v":84,"d":"84.00"}},{"$f":"SUMIFS(UtgApr[Belopp],UtgApr[Kategori],Utgiftssammanfattning[Utgifter])","v":{"v":426,"d":"426.00"}},{"$f":"SUMIFS(UtgMaj[Belopp],UtgMaj[Kategori],Utgiftssammanfattning[Utgifter])","v":{"v":125,"d":"125.00"}},{"$f":"SUMIFS(UtgJun[Belopp],UtgJun[Kategori],Utgiftssammanfattning[Utgifter])","v":{"v":187,"d":"187.00"}},{"$f":"SUMIFS(UtgJul[Belopp],UtgJul[Kategori],Utgiftssammanfattning[Utgifter])","v":{"v":0,"d":"0.00"}},{"$f":"SUMIFS(UtgAug[Belopp],UtgAug[Kategori],Utgiftssammanfattning[Utgifter])","v":{"v":0,"d":"0.00"}},{"$f":"SUMIFS(UtgSep[Belopp],UtgSep[Kategori],Utgiftssammanfattning[Utgifter])","v":{"v":0,"d":"0.00"}},{"$f":"SUMIFS(UtgOkt[Belopp],UtgOkt[Kategori],Utgiftssammanfattning[Utgifter])","v":{"v":0,"d":"0.00"}},{"$f":"SUMIFS(UtgNov[Belopp],UtgNov[Kategori],Utgiftssammanfattning[Utgifter])","v":{"v":0,"d":"0.00"}},{"$f":"SUMIFS(UtgDec[Belopp],UtgDec[Kategori],Utgiftssammanfattning[Utgifter])","v":{"v":187,"d":"187.00"}},{"$f":"SUM(Utgiftssammanfattning[[#This Row],[Jan]:[Dec]])","v":{"v":1519,"d":"1,519.00"}}]
["Utgift 5",{"$f":"SUMIFS(UtgJan[Belopp],UtgJan[Kategori],Utgiftssammanfattning[Utgifter])","v":{"v":54,"d":"54.00"}},{"$f":"SUMIFS(UtgFeb[Belopp],UtgFeb[Kategori],Utgiftssammanfattning[Utgifter])","v":{"v":54,"d":"54.00"}},{"$f":"SUMIFS(UtgMar[Belopp],UtgMar[Kategori],Utgiftssammanfattning[Utgifter])","v":{"v":109,"d":"109.00"}},{"$f":"SUMIFS(UtgApr[Belopp],UtgApr[Kategori],Utgiftssammanfattning[Utgifter])","v":{"v":98,"d":"98.00"}},{"$f":"SUMIFS(UtgMaj[Belopp],UtgMaj[Kategori],Utgiftssammanfattning[Utgifter])","v":{"v":33,"d":"33.00"}},{"$f":"SUMIFS(UtgJun[Belopp],UtgJun[Kategori],Utgiftssammanfattning[Utgifter])","v":{"v":441,"d":"441.00"}},{"$f":"SUMIFS(UtgJul[Belopp],UtgJul[Kategori],Utgiftssammanfattning[Utgifter])","v":{"v":0,"d":"0.00"}},{"$f":"SUMIFS(UtgAug[Belopp],UtgAug[Kategori],Utgiftssammanfattning[Utgifter])","v":{"v":0,"d":"0.00"}},{"$f":"SUMIFS(UtgSep[Belopp],UtgSep[Kategori],Utgiftssammanfattning[Utgifter])","v":{"v":0,"d":"0.00"}},{"$f":"SUMIFS(UtgOkt[Belopp],UtgOkt[Kategori],Utgiftssammanfattning[Utgifter])","v":{"v":0,"d":"0.00"}},{"$f":"SUMIFS(UtgNov[Belopp],UtgNov[Kategori],Utgiftssammanfattning[Utgifter])","v":{"v":0,"d":"0.00"}},{"$f":"SUMIFS(UtgDec[Belopp],UtgDec[Kategori],Utgiftssammanfattning[Utgifter])","v":{"v":99,"d":"99.00"}},{"$f":"SUM(Utgiftssammanfattning[[#This Row],[Jan]:[Dec]])","v":{"v":888,"d":"888.00"}}]
["Summa",{"$f":"SUBTOTAL(109,Utgiftssammanfattning[Jan])","v":{"v":861,"d":"861.00"}},{"$f":"SUBTOTAL(109,Utgiftssammanfattning[Feb])","v":{"v":861,"d":"861.00"}},{"$f":"SUBTOTAL(109,Utgiftssammanfattning[Mar])","v":{"v":574,"d":"574.00"}},{"$f":"SUBTOTAL(109,Utgiftssammanfattning[Apr])","v":{"v":817,"d":"817.00"}},{"$f":"SUBTOTAL(109,Utgiftssammanfattning[Maj])","v":{"v":977,"d":"977.00"}},{"$f":"SUBTOTAL(109,Utgiftssammanfattning[Jun])","v":{"v":1049,"d":"1,049.00"}},{"$f":"SUBTOTAL(109,Utgiftssammanfattning[Jul])","v":{"v":0,"d":"0.00"}},{"$f":"SUBTOTAL(109,Utgiftssammanfattning[Aug])","v":{"v":0,"d":"0.00"}},{"$f":"SUBTOTAL(109,Utgiftssammanfattning[Sep])","v":{"v":0,"d":"0.00"}},{"$f":"SUBTOTAL(109,Utgiftssammanfattning[Okt])","v":{"v":0,"d":"0.00"}},{"$f":"SUBTOTAL(109,Utgiftssammanfattning[Nov])","v":{"v":0,"d":"0.00"}},{"$f":"SUBTOTAL(109,Utgiftssammanfattning[Dec])","v":{"v":1049,"d":"1,049.00"}},{"$f":"SUBTOTAL(109,Utgiftssammanfattning[Summa])","v":{"v":6188,"d":"6,188.00"}}]

{"sheet":"jan","index":2,"n_rows":9,"n_cols":5,"rows_kept":9,"merged":[[0,0,0,2]]}
["UTGIFTER JANUARI",null,null,"Sammanfattning","Tips"]
["Datum","IO-nr","Belopp","Kategori","Beskrivning"]
[{"$f":"DATE(YEAR(TODAY()),1,4)","v":"2017-01-04"},"A-12345",{"v":33,"d":"33.00"},"Utgift 1","Material"]
[{"$f":"DATE(YEAR(TODAY()),1,5)","v":"2017-01-05"},"A-12346",{"v":238,"d":"238.00"},"Utgift 2"]
[null,null,{"v":342,"d":"342.00"},"Utgift 4"]
[null,null,{"v":110,"d":"110.00"},"Utgift 3"]
[null,null,{"v":84,"d":"84.00"},"Utgift 4"]
[null,null,{"v":54,"d":"54.00"},"Utgift 5"]
["Summa",null,{"$f":"SUBTOTAL(109,UtgJan[Belopp])","v":{"v":861,"d":"861.00"}}]

{"sheet":"feb","index":3,"n_rows":9,"n_cols":5,"rows_kept":9,"merged":[[0,0,0,2]]}
["UTGIFTER FEBRUARI",null,null,"Sammanfattning","Tips"]
["Datum","IO-nr","Belopp","Kategori","Beskrivning"]
[{"$f":"DATE(YEAR(TODAY()),2,3)","v":"2017-02-03"},"A-12345",{"v":33,"d":"33.00"},"Utgift 1","Material"]
[{"$f":"DATE(YEAR(TODAY()),2,4)","v":"2017-02-04"},"A-12346",{"v":238,"d":"238.00"},"Utgift 2"]
[null,null,{"v":342,"d":"342.00"},"Utgift 1"]
[null,null,{"v":110,"d":"110.00"},"Utgift 3"]
[null,null,{"v":84,"d":"84.00"},"Utgift 4"]
[null,null,{"v":54,"d":"54.00"},"Utgift 5"]
["Summa",null,{"$f":"SUBTOTAL(109,UtgFeb[Belopp])","v":{"v":861,"d":"861.00"}}]

{"sheet":"mar","index":4,"n_rows":9,"n_cols":5,"rows_kept":9,"merged":[[0,0,0,2]]}
["UTGIFTER MARS",null,null,"Sammanfattning","Tips"]
["Datum","IO-nr","Belopp","Kategori","Beskrivning"]
[{"$f":"DATE(YEAR(TODAY()),3,5)","v":"2017-03-05"},"A-12345",{"v":33,"d":"33.00"},"Utgift 1","Material"]
[{"$f":"DATE(YEAR(TODAY()),3,6)","v":"2017-03-06"},"A-12346",{"v":238,"d":"238.00"},"Utgift 2"]
[null,null,{"v":55,"d":"55.00"},"Utgift 5"]
[null,null,{"v":110,"d":"110.00"},"Utgift 3"]
[null,null,{"v":84,"d":"84.00"},"Utgift 4"]
[null,null,{"v":54,"d":"54.00"},"Utgift 5"]
["Summa",null,{"$f":"SUBTOTAL(109,UtgMar[Belopp])","v":{"v":574,"d":"574.00"}}]

{"sheet":"apr","index":5,"n_rows":9,"n_cols":5,"rows_kept":9,"merged":[[0,0,0,2]]}
["UTGIFTER APRIL",null,null,"Sammanfattning","Tips"]
["Datum","IO-nr","Belopp","Kategori","Beskrivning"]
[{"$f":"DATE(YEAR(TODAY()),4,4)","v":"2017-04-04"},"A-12345",{"v":45,"d":"45.00"},"Utgift 1","Material"]
[{"$f":"DATE(YEAR(TODAY()),4,8)","v":"2017-04-08"},"A-12346",{"v":123,"d":"123.00"},"Utgift 2"]
[null,null,{"v":342,"d":"342.00"},"Utgift 4"]
[null,null,{"v":125,"d":"125.00"},"Utgift 3"]
[null,null,{"v":84,"d":"84.00"},"Utgift 4"]
[null,null,{"v":98,"d":"98.00"},"Utgift 5"]
["Summa",null,{"$f":"SUBTOTAL(109,UtgApr[Belopp])","v":{"v":817,"d":"817.00"}}]

{"sheet":"maj","index":6,"n_rows":9,"n_cols":5,"rows_kept":9,"merged":[[0,0,0,2]]}
["UTGIFTER MAJ",null,null,"Sammanfattning","Tips"]
["Datum","IO-nr","Belopp","Kategori","Beskrivning"]
[{"$f":"DATE(YEAR(TODAY()),5,3)","v":"2017-05-03"},"A-12345",{"v":33,"d":"33.00"},"Utgift 1","Material"]
[{"$f":"DATE(YEAR(TODAY()),5,8)","v":"2017-05-08"},"A-12346",{"v":111,"d":"111.00"},"Utgift 2"]
[null,null,{"v":342,"d":"342.00"},"Utgift 1"]
[null,null,{"v":333,"d":"333.00"},"Utgift 3"]
[null,null,{"v":125,"d":"125.00"},"Utgift 4"]
[null,null,{"v":33,"d":"33.00"},"Utgift 5"]
["Summa",null,{"$f":"SUBTOTAL(109,UtgMaj[Belopp])","v":{"v":977,"d":"977.00"}}]

{"sheet":"jun","index":7,"n_rows":9,"n_cols":5,"rows_kept":9,"merged":[[0,0,0,2]]}
["UTGIFTER JUNI",null,null,"Sammanfattning","Tips"]
["Datum","IO-nr","Belopp","Kategori","Beskrivning"]
[{"$f":"DATE(YEAR(TODAY()),6,7)","v":"2017-06-07"},"A-12345",{"v":201,"d":"201.00"},"Utgift 1","Material"]
[{"$f":"DATE(YEAR(TODAY()),6,8)","v":"2017-06-08"},"A-12346",{"v":98,"d":"98.00"},"Utgift 2"]
[null,null,{"v":342,"d":"342.00"},"Utgift 5"]
[null,null,{"v":122,"d":"122.00"},"Utgift 3"]
[null,null,{"v":187,"d":"187.00"},"Utgift 4"]
[null,null,{"v":99,"d":"99.00"},"Utgift 5"]
["Summa",null,{"$f":"SUBTOTAL(109,UtgJun[Belopp])","v":{"v":1049,"d":"1,049.00"}}]

{"sheet":"jul","index":8,"n_rows":9,"n_cols":5,"rows_kept":9,"merged":[[0,0,0,2]]}
["UTGIFTER JULI",null,null,"Sammanfattning","Tips"]
["Datum","IO-nr","Belopp","Kategori","Beskrivning"]
[{"$f":"DATE(YEAR(TODAY()),7,9)","v":"2017-07-09"},"A-12345",null,"Utgift 1","Material"]
[{"$f":"DATE(YEAR(TODAY()),7,14)","v":"2017-07-14"},"A-12346",null,"Utgift 2"]
[{"$nulls":3},"Utgift 2"]
[{"$nulls":3},"Utgift 3"]
[{"$nulls":3},"Utgift 4"]
[{"$nulls":3},"Utgift 5"]
["Summa",null,{"$f":"SUBTOTAL(109,UtgJul[Belopp])","v":{"v":0,"d":"0.00"}}]

{"sheet":"aug","index":9,"n_rows":9,"n_cols":5,"rows_kept":9,"merged":[[0,0,0,2]]}
["UTGIFTER AUGUSTI",null,null,"Sammanfattning","Tips"]
["Datum","IO-nr","Belopp","Kategori","Beskrivning"]
[{"$f":"DATE(YEAR(TODAY()),8,8)","v":"2017-08-08"},"A-12345",null,"Utgift 1","Material"]
[{"$f":"DATE(YEAR(TODAY()),8,9)","v":"2017-08-09"},"A-12346",null,"Utgift 2"]
[{"$nulls":3},"Utgift 2"]
[{"$nulls":3},"Utgift 3"]
[{"$nulls":3},"Utgift 4"]
[{"$nulls":3},"Utgift 5"]
["Summa",null,{"$f":"SUBTOTAL(109,UtgAug[Belopp])","v":{"v":0,"d":"0.00"}}]

{"sheet":"sep","index":10,"n_rows":9,"n_cols":5,"rows_kept":9,"merged":[[0,0,0,2]]}
["UTGIFTER SEPTEMBER",null,null,"Sammanfattning","Tips"]
["Datum","IO-nr","Belopp","Kategori","Beskrivning"]
[{"$f":"DATE(YEAR(TODAY()),9,9)","v":"2017-09-09"},"A-12345",null,"Utgift 1","Material"]
[{"$f":"DATE(YEAR(TODAY()),9,15)","v":"2017-09-15"},"A-12346",null,"Utgift 2"]
[{"$nulls":3},"Utgift 2"]
[{"$nulls":3},"Utgift 3"]
[{"$nulls":3},"Utgift 4"]
[{"$nulls":3},"Utgift 5"]
["Summa",null,{"$f":"SUBTOTAL(109,UtgSep[Belopp])","v":{"v":0,"d":"0.00"}}]

{"sheet":"okt","index":11,"n_rows":9,"n_cols":5,"rows_kept":9,"merged":[[0,0,0,2]]}
["UTGIFTER OKTOBER",null,null,"Sammanfattning","Tips"]
["Datum","IO-nr","Belopp","Kategori","Beskrivning"]
[{"$f":"DATE(YEAR(TODAY()),10,10)","v":"2017-10-10"},"A-12345",null,"Utgift 1","Material"]
[{"$f":"DATE(YEAR(TODAY()),10,21)","v":"2017-10-21"},"A-12346",null,"Utgift 2"]
[{"$nulls":3},"Utgift 2"]
[{"$nulls":3},"Utgift 3"]
[{"$nulls":3},"Utgift 4"]
[{"$nulls":3},"Utgift 5"]
["Summa",null,{"$f":"SUBTOTAL(109,UtgOkt[Belopp])","v":{"v":0,"d":"0.00"}}]

{"sheet":"nov","index":12,"n_rows":9,"n_cols":5,"rows_kept":9,"merged":[[0,0,0,2]]}
["UTGIFTER NOVEMBER",null,null,"Sammanfattning","Tips"]
["Datum","IO-nr","Belopp","Kategori","Beskrivning"]
[{"$f":"DATE(YEAR(TODAY()),11,14)","v":"2017-11-14"},"A-12345",null,"Utgift 1","Material"]
[{"$f":"DATE(YEAR(TODAY()),11,21)","v":"2017-11-21"},"A-12346",null,"Utgift 2"]
[{"$nulls":3},"Utgift 2"]
[{"$nulls":3},"Utgift 3"]
[{"$nulls":3},"Utgift 4"]
[{"$nulls":3},"Utgift 5"]
["Summa",null,{"$f":"SUBTOTAL(109,UtgNov[Belopp])","v":{"v":0,"d":"0.00"}}]

{"sheet":"dec","index":13,"n_rows":9,"n_cols":5,"rows_kept":9,"merged":[[0,0,0,2]]}
["UTGIFTER DECEMBER",null,null,"Sammanfattning","Tips"]
["Datum","IO-nr","Belopp","Kategori","Beskrivning"]
[{"$f":"DATE(YEAR(TODAY()),12,2)","v":"2017-12-02"},"A-12345",{"v":201,"d":"201.00"},"Utgift 1","Material"]
[{"$f":"DATE(YEAR(TODAY()),12,24)","v":"2017-12-24"},"A-12346",{"v":98,"d":"98.00"},"Utgift 2"]
[null,null,{"v":342,"d":"342.00"},"Utgift 2"]
[null,null,{"v":122,"d":"122.00"},"Utgift 3"]
[null,null,{"v":187,"d":"187.00"},"Utgift 4"]
[null,null,{"v":99,"d":"99.00"},"Utgift 5"]
["Summa",null,{"$f":"SUBTOTAL(109,UtgDec[Belopp])","v":{"v":1049,"d":"1,049.00"}}]